[Event "LJ Slovak Open 2022"]
[Site "Liptovsky Jan"]
[Date "2022.06.24"]
[Round "3.45"]
[White "Kolibik, Jan"]
[Black "Polacok, Jozef"]
[Result "1/2-1/2"]
[ECO "A11"]
[WhiteElo "1621"]
[BlackElo "1386"]
[Annotator "NA RC"]
[PlyCount "46"]
[EventDate "2022.06.23"]
[EventType "swiss"]
[EventCountry "SVK"]
[SourceTitle "playchess.com"]
[Source "ChessBase"]
[SourceQuality "1"]
[TimeControl "3600+30"]

1. c4 {[%emt 0:00:18]} c6 {[%emt 0:00:17]} 2. g3 {[%emt 0:00:42]} d5 {[%emt 0:00:34]} 3. cxd5 {[%emt 0:00:15]} cxd5 {[%emt 0:00:20]} 4. Bg2 {[%emt 0:00:15]} Nf6 {[%emt 0:00:48]} 5. Nf3 {[%emt 0:00:33]} Bf5 {[%emt 0:01:24]} 6. O-O {[%emt 0:03:26]} e6 {[%emt 0:01:33]} 7. Qa4+ {[%emt 0:04:21]} Qd7 {[%emt 0:03:35]} 8. Qxd7+ {[%emt 0:04:37]} Nbxd7 {[%emt 0:00:11]} 9. d4 {[%emt 0:00:28]} Be7 {[%emt 0:01:24]} 10. Nc3 {[%emt 0:00:31]} h6 {[%emt 0:01:25]} 11. Bd2 {[%emt 0:00:49]} a6 {[%emt 0:01:29]} 12. Rfc1 {[%emt 0:01:57]} O-O {[%emt 0:01:28]} 13. e3 {[%emt 0:07:31]} b5 {[%emt 0:01:22]} 14. a3 {[%emt 0:02:31]} Nb6 {[%emt 0:02:33]} 15. Ne5 {[%emt 0:01:00]} Rfc8 {[%emt 0:01:34]} 16. b4 {[%emt 0:01:47]} Nc4 {[%emt 0:01:22]} 17. Nxc4 {[%emt 0:00:48]} Rxc4 {[%emt 0:00:20]} 18. Bf1 {[%emt 0:00:09]} Rc6 {[%emt 0:01:09]} 19. f3 {[%emt 0:00:52]} Nd7 {[%emt 0:01:02]} 20. Ne2 {[%emt 0:02:02]} Rac8 {[%emt 0:00:50]} 21. Rxc6 {[%emt 0:01:39]} Rxc6 {[%emt 0:00:10]} 22. Rc1 {[%emt 0:00:09]} Rxc1 {[%emt 0:00:44]} 23. Bxc1 {[%emt 0:02:50]} Bd3 {[%emt 0:01:19]} 1/2-1/2

[Event "LJ Slovak Open 2022"]
[Site "Liptovsky Jan"]
[Date "2022.06.24"]
[Round "3.46"]
[White "Freibergs, Filips"]
[Black "Koren, Juraj"]
[Result "1-0"]
[ECO "D02"]
[WhiteElo "1250"]
[BlackElo "1506"]
[Annotator "NA RC"]
[PlyCount "107"]
[EventDate "2022.06.23"]
[EventType "swiss"]
[EventCountry "SVK"]
[SourceTitle "playchess.com"]
[Source "ChessBase"]
[SourceQuality "1"]
[TimeControl "3600+30"]

1. d4 {[%emt 0:00:03]} d5 {[%emt 0:00:08]} 2. Nf3 {[%emt 0:00:07]} Bg4 {[%emt 0:01:09]} 3. Nbd2 {[%emt 0:00:44]} Nd7 {[%emt 0:01:41]} 4. e3 {[%emt 0:00:14]} e6 {[%emt 0:00:46]} 5. b3 {[%emt 0:01:10]} Ne7 {[%emt 0:00:52]} 6. Bb2 {[%emt 0:00:39]} Nc6 {[%emt 0:00:52]} 7. Be2 {[%emt 0:01:07]} Be7 {[%emt 0:00:57]} 8. Ne5 {[%emt 0:01:06]} Bxe2 {[%emt 0:00:26]} 9. Qxe2 {[%emt 0:00:03]} O-O {[%emt 0:03:20]} 10. O-O {[%emt 0:01:06]} Ndxe5 {[%emt 0:11:46]} 11. dxe5 {[%emt 0:00:18]} Nb4 {[%emt 0:01:26]} 12. Nf3 {[%emt 0:01:56]} c5 {[%emt 0:01:07]} 13. c4 {[%emt 0:04:10]} Qb6 {[%emt 0:03:42]} 14. Rfd1 {[%emt 0:04:09]} Rad8 {[%emt 0:00:20]} 15. Bc3 {[%emt 0:04:39]} Na6 {[%emt 0:01:41]} 16. Rd2 {[%emt 0:03:32]} Rd7 {[%emt 0:00:25]} 17. Rad1 {[%emt 0:02:05]} Rfd8 {[%emt 0:00:08]} 18. Rd3 {[%emt 0:02:06]} Nc7 {[%emt 0:01:18]} 19. Qd2 {[%emt 0:01:20]} h6 {[%emt 0:01:28]} 20. cxd5 {[%emt 0:09:54]} Rxd5 {[%emt 0:01:52]} 21. Qc2 {[%emt 0:01:40]} Qc6 {[%emt 0:01:49]} 22. h3 {[%emt 0:05:42]} Nb5 {[%emt 0:01:27]} 23. a4 {[%emt 0:04:11]} Nxc3 {[%emt 0:00:42]} 24. Qxc3 {[%emt 0:00:05]} Rxd3 {[%emt 0:01:36]} 25. Rxd3 {[%emt 0:00:02]} Rxd3 {[%emt 0:00:31]} 26. Qxd3 {[%emt 0:00:03]} a6 {[%emt 0:01:24]} 27. Nd2 {[%emt 0:03:04]} b5 {[%emt 0:01:17]} 28. axb5 {[%emt 0:00:33]} axb5 {[%emt 0:00:23]} 29. Qe4 {[%emt 0:00:18]} Qd5 {[%emt 0:05:30]} 30. Qxd5 {[%emt 0:01:07]} exd5 {[%emt 0:00:09]} 31. Kf1 {[%emt 0:05:17]} f6 {[%emt 0:00:33]} 32. exf6 {[%emt 0:01:11]} Bxf6 {[%emt 0:00:10]} 33. e4 {[%emt 0:00:21]} Bc3 {[%emt 0:01:33]} 34. Ke2 {[%emt 0:00:40]} Bxd2 {[%emt 0:05:33]} 35. Kxd2 {[%emt 0:00:30]} d4 {[%emt 0:01:41]} 36. Kd3 {[%emt 0:01:57]} Kf7 {[%emt 0:00:14]} 37. b4 {[%emt 0:01:43]} cxb4 {[%emt 0:00:36]} 38. Kxd4 {[%emt 0:01:03]} g5 {[%emt 0:00:50]} 39. g3 {[%emt 0:00:27]} Ke6 {[%emt 0:00:46]} 40. f4 {[%emt 0:00:22]} gxf4 {[%emt 0:00:40]} 41. gxf4 {[%emt 0:00:01]} Kf6 {[%emt 0:04:35]} 42. e5+ {[%emt 0:00:17]} Ke6 {[%emt 0:04:16]} 43. Kd3 {[%emt 0:00:14]} Kd5 {[%emt 0:00:46]} 44. Kc2 {[%emt 0:00:31]} Ke6 {[%emt 0:02:59]} 45. Kb3 {[%emt 0:00:01]} Kd5 {[%emt 0:00:21]} 46. Kxb4 {[%emt 0:00:10]} Ke6 {[%emt 0:00:10]} 47. Kxb5 {[%emt 0:00:01]} Kd5 {[%emt 0:00:54]} 48. Kb6 {[%emt 0:00:06]} h5 {[%emt 0:00:26]} 49. h4 {[%emt 0:00:25]} Ke6 {[%emt 0:00:07]} 50. Kc7 {[%emt 0:00:13]} Ke7 {[%emt 0:00:51]} 51. f5 {[%emt 0:00:08]} Ke8 {[%emt 0:00:34]} 52. f6 {[%emt 0:00:02]} Kf7 {[%emt 0:00:14]} 53. Kd7 {[%emt 0:00:15]} Kg6 {[%emt 0:01:02]} 54. Ke6 {[%emt 0:01:13]} 1-0

[Event "LJ Slovak Open 2022"]
[Site "Liptovsky Jan"]
[Date "2022.06.24"]
[Round "3.47"]
[White "Nedoba, Jakub"]
[Black "Carnecky, Viliam"]
[Result "1/2-1/2"]
[ECO "D00"]
[WhiteElo "1158"]
[BlackElo "1380"]
[Annotator "NA RC"]
[PlyCount "20"]
[EventDate "2022.06.23"]
[EventType "swiss"]
[EventCountry "SVK"]
[SourceTitle "playchess.com"]
[Source "ChessBase"]
[SourceQuality "1"]
[TimeControl "3600+30"]

1. d4 {[%emt 0:01:03]} d5 {[%emt 0:00:05]} 2. Bf4 {[%emt 0:00:06]} Nf6 {[%emt 0:00:30]} 3. e3 {[%emt 0:00:18]} c5 {[%emt 0:00:14]} 4. c3 {[%emt 0:00:11]} Nc6 {[%emt 0:00:44]} 5. Bd3 {[%emt 0:00:21]} Qb6 {[%emt 0:03:57]} 6. Na3 {[%emt 0:10:33]} Qxb2 {[%emt 0:03:43]} 7. Nb5 {[%emt 0:00:28]} Kd7 {[%emt 0:01:11]} 8. Rb1 {[%emt 0:00:57]} Qxa2 {[%emt 0:01:54]} 9. Ra1 {[%emt 0:00:19]} Qb2 {[%emt 0:00:58]} 10. Rb1 {[%emt 0:00:11]} Qa2 {[%emt 0:00:20]} 1/2-1/2

[Event "LJ Slovak Open 2022"]
[Site "Liptovsky Jan"]
[Date "2022.06.24"]
[Round "3.48"]
[White "Sokolovsky, Jakub"]
[Black "Livnansky, Tomas"]
[Result "1-0"]
[ECO "C57"]
[WhiteElo "1613"]
[BlackElo "1244"]
[Annotator "NA RC"]
[PlyCount "57"]
[EventDate "2022.06.23"]
[EventType "swiss"]
[EventCountry "SVK"]
[SourceTitle "playchess.com"]
[Source "ChessBase"]
[SourceQuality "1"]
[TimeControl "3600+30"]

1. e4 {[%emt 0:00:39]} e5 {[%emt 0:00:38]} 2. Nf3 {[%emt 0:00:30]} Nc6 {[%emt 0:00:08]} 3. Bc4 {[%emt 0:00:18]} Nf6 {[%emt 0:00:13]} 4. Ng5 {[%emt 0:01:03]} Bc5 {[%emt 0:01:39]} 5. Bxf7+ {[%emt 0:00:25]} Kf8 {[%emt 0:00:13]} 6. Bc4 {[%emt 0:01:18]} Qe7 {[%emt 0:03:32]} 7. Nc3 {[%emt 0:01:46]} h6 {[%emt 0:03:44]} 8. Nf3 {[%emt 0:00:12]} d6 {[%emt 0:01:13]} 9. h3 {[%emt 0:01:50]} Be6 {[%emt 0:00:49]} 10. Bxe6 {[%emt 0:01:05]} Qxe6 {[%emt 0:00:14]} 11. O-O {[%emt 0:00:16]} Ke7 {[%emt 0:02:23]} 12. Nh4 {[%emt 0:02:50]} g5 {[%emt 0:01:54]} 13. Ng6+ {[%emt 0:00:07]} Kd7 {[%emt 0:00:31]} 14. Nxh8 {[%emt 0:00:03]} Rxh8 {[%emt 0:00:14]} 15. Qf3 {[%emt 0:05:01]} Nd4 {[%emt 0:00:11]} 16. Qd1 {[%emt 0:00:22]} h5 {[%emt 0:00:36]} 17. d3 {[%emt 0:00:49]} g4 {[%emt 0:00:27]} 18. h4 {[%emt 0:00:44]} g3 {[%emt 0:03:02]} 19. Be3 {[%emt 0:01:08]} gxf2+ {[%emt 0:01:58]} 20. Bxf2 {[%emt 0:00:17]} Ng4 {[%emt 0:00:24]} 21. Na4 {[%emt 0:04:42]} Nxf2 {[%emt 0:08:16]} 22. Nxc5+ {[%emt 0:00:10]} dxc5 {[%emt 0:00:14]} 23. Rxf2 {[%emt 0:00:24]} Rg8 {[%emt 0:02:42]} 24. c3 {[%emt 0:00:20]} Nc6 {[%emt 0:00:30]} 25. Qxh5 {[%emt 0:00:42]} Ne7 {[%emt 0:00:48]} 26. Raf1 {[%emt 0:02:20]} Qh3 {[%emt 0:00:48]} 27. Qh7 {[%emt 0:02:43]} Rg5 {[%emt 0:01:36]} 28. Qh6 {[%emt 0:04:11]} Rg6 {[%emt 0:00:15]} 29. Qxg6 {[%emt 0:00:08]} 1-0

[Event "LJ Slovak Open 2022"]
[Site "Liptovsky Jan"]
[Date "2022.06.24"]
[Round "3.49"]
[White "Polackova, Eva"]
[Black "Magda, Filip"]
[Result "0-1"]
[ECO "B34"]
[WhiteElo "1253"]
[BlackElo "1624"]
[Annotator "NA RC"]
[PlyCount "56"]
[EventDate "2022.06.23"]
[EventType "swiss"]
[EventCountry "SVK"]
[SourceTitle "playchess.com"]
[Source "ChessBase"]
[SourceQuality "1"]
[TimeControl "3600+30"]

1. e4 {[%emt 0:00:04]} c5 {[%emt 0:00:42]} 2. Nf3 {[%emt 0:00:26]} Nc6 {[%emt 0:00:04]} 3. Nc3 {[%emt 0:00:37]} d6 {[%emt 0:00:32]} 4. d4 {[%emt 0:00:43]} cxd4 {[%emt 0:00:04]} 5. Nxd4 {[%emt 0:00:23]} g6 {[%emt 0:00:26]} 6. Bc4 {[%emt 0:01:21]} Bg7 {[%emt 0:01:52]} 7. Nxc6 {[%emt 0:04:09]} bxc6 {[%emt 0:00:30]} 8. Bf4 {[%emt 0:00:30]} Bd7 {[%emt 0:00:30]} 9. Qf3 {[%emt 0:00:30]} Nf6 {[%emt 0:01:32]} 10. O-O-O {[%emt 0:03:21]} Qc8 {[%emt 0:02:14]} 11. h3 {[%emt 0:02:04]} O-O {[%emt 0:04:00]} 12. Qe3 {[%emt 0:02:23]} Qb7 {[%emt 0:03:35]} 13. Rdg1 {[%emt 0:01:52]} Rab8 {[%emt 0:01:57]} 14. Nd1 {[%emt 0:01:45]} c5 {[%emt 0:04:36]} 15. Bh6 {[%emt 0:01:36]} Bxh6 {[%emt 0:07:18]} 16. Qxh6 {[%emt 0:01:12]} Qxe4 {[%emt 0:00:12]} 17. Bd3 {[%emt 0:01:25]} Qd5 {[%emt 0:02:20]} 18. a3 {[%emt 0:01:58]} c4 {[%emt 0:02:36]} 19. Be2 {[%emt 0:01:26]} Ba4 {[%emt 0:02:41]} 20. Nc3 {[%emt 0:01:17]} Qc6 {[%emt 0:01:44]} 21. g4 {[%emt 0:01:34]} Bb5 {[%emt 0:07:53]} 22. h4 {[%emt 0:01:21]} Ne4 {[%emt 0:01:32]} 23. Nd1 {[%emt 0:01:48]} d5 {[%emt 0:00:52]} 24. g5 {[%emt 0:01:38]} c3 {[%emt 0:02:04]} 25. Bxb5 {[%emt 0:00:49]} cxb2+ {[%emt 0:00:46]} 26. Kb1 {[%emt 0:00:42]} Qxb5 {[%emt 0:01:36]} 27. h5 {[%emt 0:00:47]} Nd2+ {[%emt 0:00:16]} 28. Ka2 {[%emt 0:00:43]} Qc4# {[%emt 0:00:19]} 0-1

[Event "LJ Slovak Open 2022"]
[Site "Liptovsky Jan"]
[Date "2022.06.24"]
[Round "3.50"]
[White "Dicer, Juraj"]
[Black "Haasova, Nina"]
[Result "1-0"]
[ECO "D10"]
[WhiteElo "1562"]
[BlackElo "1216"]
[Annotator "NA RC"]
[PlyCount "96"]
[EventDate "2022.06.23"]
[EventType "swiss"]
[EventCountry "SVK"]
[SourceTitle "playchess.com"]
[Source "ChessBase"]
[SourceQuality "1"]
[TimeControl "3600+30"]

1. d4 {[%emt 0:00:21]} d5 {[%emt 0:00:09]} 2. c4 {[%emt 0:00:02]} c6 {[%emt 0:00:07]} 3. cxd5 {[%emt 0:00:14]} cxd5 {[%emt 0:00:13]} 4. Nc3 {[%emt 0:00:03]} Nf6 {[%emt 0:00:25]} 5. Qc2 {[%emt 0:00:18]} g6 {[%emt 0:00:36]} 6. Bf4 {[%emt 0:00:22]} Bg7 {[%emt 0:00:28]} 7. Nf3 {[%emt 0:00:06]} O-O {[%emt 0:00:24]} 8. e3 {[%emt 0:00:12]} Bf5 {[%emt 0:00:30]} 9. Qb3 {[%emt 0:00:50]} b6 {[%emt 0:00:43]} 10. Nb5 {[%emt 0:01:34]} Nbd7 {[%emt 0:00:38]} 11. Be2 {[%emt 0:02:15]} Qc8 {[%emt 0:02:13]} 12. Nc7 {[%emt 0:00:55]} Rb8 {[%emt 0:00:56]} 13. Nxd5 {[%emt 0:00:24]} Nxd5 {[%emt 0:01:17]} 14. Bxb8 {[%emt 0:00:53]} Nxe3 {[%emt 0:00:36]} 15. fxe3 {[%emt 0:02:54]} Qxb8 {[%emt 0:00:47]} 16. O-O {[%emt 0:00:38]} Bg4 {[%emt 0:02:11]} 17. h3 {[%emt 0:00:50]} Bxf3 {[%emt 0:00:52]} 18. Rxf3 {[%emt 0:00:32]} e5 {[%emt 0:00:58]} 19. Bc4 {[%emt 0:00:31]} Nf6 {[%emt 0:00:49]} 20. Raf1 {[%emt 0:00:44]} Qd6 {[%emt 0:00:36]} 21. g4 {[%emt 0:03:13]} g5 {[%emt 0:00:58]} 22. Rf5 {[%emt 0:00:33]} h6 {[%emt 0:00:17]} 23. dxe5 {[%emt 0:00:16]} Qc6 {[%emt 0:00:47]} 24. Rxf6 {[%emt 0:02:14]} Bxf6 {[%emt 0:00:25]} 25. Rxf6 {[%emt 0:00:10]} Qd7 {[%emt 0:00:41]} 26. e6 {[%emt 0:01:14]} Qe7 {[%emt 0:00:31]} 27. Qc3 {[%emt 0:02:20]} fxe6 {[%emt 0:01:12]} 28. Rxh6 {[%emt 0:00:55]} Qg7 {[%emt 0:00:36]} 29. Bxe6+ {[%emt 0:00:20]} Rf7 {[%emt 0:00:25]} 30. Rf6 {[%emt 0:01:30]} Kh8 {[%emt 0:03:35]} 31. Rxf7 {[%emt 0:01:58]} Qxc3 {[%emt 0:00:44]} 32. bxc3 {[%emt 0:00:31]} a5 {[%emt 0:00:30]} 33. Rd7 {[%emt 0:01:12]} b5 {[%emt 0:00:24]} 34. e4 {[%emt 0:00:07]} b4 {[%emt 0:01:04]} 35. cxb4 {[%emt 0:00:00]} axb4 {[%emt 0:00:21]} 36. e5 {[%emt 0:00:00]} b3 {[%emt 0:00:37]} 37. Rd8+ {[%emt 0:00:08]} Kg7 {[%emt 0:00:36]} 38. Bxb3 {[%emt 0:00:19]} Kg6 {[%emt 0:00:11]} 39. e6 {[%emt 0:00:21]} Kf6 {[%emt 0:00:13]} 40. Rf8+ {[%emt 0:00:31]} Ke7 {[%emt 0:00:14]} 41. Rf7+ {[%emt 0:00:11]} Ke8 {[%emt 0:00:18]} 42. Ba4+ {[%emt 0:00:15]} Kd8 {[%emt 0:00:28]} 43. e7+ {[%emt 0:00:04]} Kc7 {[%emt 0:00:16]} 44. e8=Q+ {[%emt 0:00:49]} Kd6 {[%emt 0:00:09]} 45. Rd7+ {[%emt 0:00:34]} Kc5 {[%emt 0:00:10]} 46. Qc8+ {[%emt 0:00:44]} Kb4 {[%emt 0:00:20]} 47. Rb7+ {[%emt 0:00:20]} Ka3 {[%emt 0:00:23]} 48. Bd1 {[%emt 0:01:06]} Kxa2 {[%emt 0:00:22]} 1-0

[Event "LJ Slovak Open 2022"]
[Site "Liptovsky Jan"]
[Date "2022.06.24"]
[Round "3.51"]
[White "Lacko, Stanislav"]
[Black "Muller, Tomas"]
[Result "1-0"]
[ECO "C02"]
[WhiteElo "1462"]
[BlackElo "1240"]
[Annotator "NA RC"]
[PlyCount "117"]
[EventDate "2022.06.23"]
[EventType "swiss"]
[EventCountry "SVK"]
[SourceTitle "playchess.com"]
[Source "ChessBase"]
[SourceQuality "1"]
[TimeControl "3600+30"]

1. e4 {[%emt 0:00:16]} e6 {[%emt 0:02:23]} 2. f4 {[%emt 0:00:17]} d5 {[%emt 0:01:37]} 3. e5 {[%emt 0:00:17]} c5 {[%emt 0:01:29]} 4. Nf3 {[%emt 0:00:31]} Nc6 {[%emt 0:01:31]} 5. c3 {[%emt 0:00:48]} Bd7 {[%emt 0:01:30]} 6. d4 {[%emt 0:01:36]} Qb6 {[%emt 0:01:30]} 7. b3 {[%emt 0:02:48]} Nge7 {[%emt 0:02:20]} 8. Na3 {[%emt 0:02:52]} cxd4 {[%emt 0:01:31]} 9. cxd4 {[%emt 0:02:27]} Qb4+ {[%emt 0:01:38]} 10. Qd2 {[%emt 0:00:46]} Qxd2+ {[%emt 0:01:32]} 11. Kxd2 {[%emt 0:02:32]} Ng6 {[%emt 0:02:45]} 12. g3 {[%emt 0:04:47]} Rc8 {[%emt 0:00:30]} 13. Bb5 {[%emt 0:00:30]} Nge7 {[%emt 0:02:44]} 14. Bb2 {[%emt 0:01:55]} Nf5 {[%emt 0:00:57]} 15. Bxc6 {[%emt 0:02:06]} Rxc6 {[%emt 0:01:29]} 16. Rhc1 {[%emt 0:09:09]} Be7 {[%emt 0:01:50]} 17. Nc2 {[%emt 0:00:28]} Ra6 {[%emt 0:00:31]} 18. g4 {[%emt 0:05:40]} Nh6 {[%emt 0:02:13]} 19. h3 {[%emt 0:00:14]} O-O {[%emt 0:01:16]} 20. Ne3 {[%emt 0:05:28]} Rc6 {[%emt 0:01:11]} 21. Rxc6 {[%emt 0:03:27]} Bxc6 {[%emt 0:00:33]} 22. Nc2 {[%emt 0:01:58]} f6 {[%emt 0:01:17]} 23. Ke3 {[%emt 0:02:32]} Nf7 {[%emt 0:01:16]} 24. Ba3 {[%emt 0:01:03]} g5 {[%emt 0:01:56]} 25. Bxe7 {[%emt 0:00:51]} gxf4+ {[%emt 0:03:17]} 26. Kxf4 {[%emt 0:02:58]} fxe5+ {[%emt 0:00:23]} 27. Nxe5 {[%emt 0:01:22]} Re8 {[%emt 0:00:34]} 28. Nxc6 {[%emt 0:03:01]} bxc6 {[%emt 0:01:16]} 29. Bc5 {[%emt 0:00:20]} a6 {[%emt 0:01:13]} 30. Nb4 {[%emt 0:00:39]} e5+ {[%emt 0:01:34]} 31. Kg3 {[%emt 0:02:24]} exd4 {[%emt 0:03:25]} 32. Bxd4 {[%emt 0:00:43]} Re4 {[%emt 0:01:41]} 33. Nxc6 {[%emt 0:01:10]} Ng5 {[%emt 0:03:27]} 34. Rf1 {[%emt 0:01:17]} Re2 {[%emt 0:02:04]} 35. Kh4 {[%emt 0:01:10]} h6 {[%emt 0:01:24]} 36. Bf6 {[%emt 0:01:41]} Re6 {[%emt 0:01:24]} 37. Ne7+ {[%emt 0:01:11]} Kh7 {[%emt 0:00:32]} 38. Nxd5 {[%emt 0:00:25]} Rd6 {[%emt 0:00:59]} 39. Rf5 {[%emt 0:01:07]} Ne4 {[%emt 0:01:33]} 40. Ba1 {[%emt 0:00:31]} Rd7 {[%emt 0:03:25]} 41. Nf6+ {[%emt 0:00:28]} Nxf6 {[%emt 0:00:11]} 42. Rxf6 {[%emt 0:00:14]} Rd1 {[%emt 0:00:41]} 43. Be5 {[%emt 0:00:45]} Rd5 {[%emt 0:00:39]} 44. Bf4 {[%emt 0:00:29]} Ra5 {[%emt 0:01:34]} 45. Rxh6+ {[%emt 0:00:35]} Kg7 {[%emt 0:00:20]} 46. a4 {[%emt 0:00:18]} Rc5 {[%emt 0:00:52]} 47. Rxa6 {[%emt 0:00:19]} Rc3 {[%emt 0:00:15]} 48. b4 {[%emt 0:00:23]} Rc4 {[%emt 0:00:01]} 49. Bd6 {[%emt 0:00:22]} Rd4 {[%emt 0:00:16]} 50. Bc5 {[%emt 0:00:11]} Rd5 {[%emt 0:00:18]} 51. Rd6 {[%emt 0:00:16]} Re5 {[%emt 0:00:18]} 52. a5 {[%emt 0:00:11]} Kf7 {[%emt 0:00:08]} 53. a6 {[%emt 0:00:12]} Re6 {[%emt 0:00:03]} 54. Rxe6 {[%emt 0:00:19]} Kxe6 {[%emt 0:00:08]} 55. a7 {[%emt 0:00:07]} Kd7 {[%emt 0:00:06]} 56. a8=Q {[%emt 0:00:25]} Kc7 {[%emt 0:00:00]} 57. Kg5 {[%emt 0:00:34]} Kd7 {[%emt 0:00:00]} 58. h4 {[%emt 0:00:06]} Kc7 {[%emt 0:00:34]} 59. Kf5 {[%emt 0:00:17]} 1-0

[Event "LJ Slovak Open 2022"]
[Site "Liptovsky Jan"]
[Date "2022.06.24"]
[Round "3.52"]
[White "Kovacik, Oliver"]
[Black "Muller, Martin"]
[Result "0-1"]
[ECO "D04"]
[WhiteElo "1331"]
[BlackElo "1476"]
[Annotator "NA"]
[PlyCount "122"]
[EventDate "2022.06.23"]
[EventType "swiss"]
[EventCountry "SVK"]
[SourceTitle "playchess.com"]
[Source "ChessBase"]
[SourceQuality "1"]
[TimeControl "3600+30"]

1. d4 {[%emt 0:00:06]} g6 {[%emt 0:00:46]} 2. Nf3 {[%emt 0:00:35]} Nf6 {[%emt 0:00:54]} 3. e3 {[%emt 0:00:56]} Bg7 {[%emt 0:01:24]} 4. Bd3 {[%emt 0:00:13]} b6 {[%emt 0:00:27]} 5. Nbd2 {[%emt 0:00:24]} d5 {[%emt 0:03:31]} 6. h3 {[%emt 0:02:16]} Bb7 {[%emt 0:04:38]} 7. c3 {[%emt 0:00:46]} Nbd7 {[%emt 0:02:21]} 8. O-O {[%emt 0:01:54]} Ne4 {[%emt 0:00:22]} 9. Qc2 {[%emt 0:01:35]} f5 {[%emt 0:05:05]} 10. Bxe4 {[%emt 0:00:35]} fxe4 {[%emt 0:01:19]} 11. Ng5 {[%emt 0:00:10]} Nf8 {[%emt 0:01:21]} 12. f3 {[%emt 0:00:36]} h6 {[%emt 0:00:28]} 13. Nf7 {[%emt 0:00:20]} Kxf7 {[%emt 0:00:28]} 14. fxe4+ {[%emt 0:00:05]} Kg8 {[%emt 0:00:34]} 15. e5 {[%emt 0:00:32]} Bc8 {[%emt 0:08:59]} 16. Rf3 {[%emt 0:01:27]} Bf5 {[%emt 0:00:49]} 17. e4 {[%emt 0:01:00]} dxe4 {[%emt 0:00:21]} 18. Nxe4 {[%emt 0:00:07]} Qd5 {[%emt 0:00:27]} 19. Re3 {[%emt 0:00:43]} Ne6 {[%emt 0:02:44]} 20. Qe2 {[%emt 0:02:21]} Nf4 {[%emt 0:01:15]} 21. Qf3 {[%emt 0:00:28]} Bxe4 {[%emt 0:02:43]} 22. Rxe4 {[%emt 0:01:26]} Ne6 {[%emt 0:01:23]} 23. Bf4 {[%emt 0:01:08]} Rf8 {[%emt 0:00:15]} 24. Qe3 {[%emt 0:00:40]} g5 {[%emt 0:00:15]} 25. Bg3 {[%emt 0:01:14]} h5 {[%emt 0:02:09]} 26. h4 {[%emt 0:00:09]} Bh6 {[%emt 0:00:50]} 27. Qe2 {[%emt 0:01:14]} g4 {[%emt 0:02:26]} 28. Qc2 {[%emt 0:01:06]} Rh7 {[%emt 0:02:49]} 29. Re2 {[%emt 0:00:25]} Rg7 {[%emt 0:06:57]} 30. Rf1 {[%emt 0:00:26]} Qa8 {[%emt 0:03:38]} 31. Qb3 {[%emt 0:00:33]} Qc8 {[%emt 0:00:25]} 32. Rxf8+ {[%emt 0:00:35]} Kxf8 {[%emt 0:00:07]} 33. Rf2+ {[%emt 0:00:05]} Rf7 {[%emt 0:00:30]} 34. Qc2 {[%emt 0:00:38]} Rxf2 {[%emt 0:00:59]} 35. Qxf2+ {[%emt 0:00:11]} Kg7 {[%emt 0:00:27]} 36. Qf5 {[%emt 0:00:20]} Qg8 {[%emt 0:01:13]} 37. Qxh5 {[%emt 0:00:37]} Qf7 {[%emt 0:01:06]} 38. Qxg4+ {[%emt 0:00:10]} Qg6 {[%emt 0:00:10]} 39. Qh3 {[%emt 0:00:34]} Kf7 {[%emt 0:00:47]} 40. d5 {[%emt 0:00:16]} Nf4 {[%emt 0:02:10]} 41. Bxf4 {[%emt 0:01:39]} Bxf4 {[%emt 0:00:07]} 42. Qf3 {[%emt 0:00:13]} Qb1+ {[%emt 0:00:23]} 43. Kf2 {[%emt 0:00:33]} Qc2+ {[%emt 0:00:08]} 44. Kg1 {[%emt 0:00:20]} Qc1+ {[%emt 0:00:21]} 45. Kf2 {[%emt 0:00:18]} Qd2+ {[%emt 0:00:22]} 46. Kf1 {[%emt 0:00:41]} Qc1+ {[%emt 0:04:06]} 47. Kf2 {[%emt 0:01:17]} Qxb2+ {[%emt 0:00:06]} 48. Kf1 {[%emt 0:00:21]} Qb1+ {[%emt 0:00:18]} 49. Kf2 {[%emt 0:00:23]} Qxa2+ {[%emt 0:00:07]} 50. Kf1 {[%emt 0:00:17]} Qb1+ {[%emt 0:00:56]} 51. Kf2 {[%emt 0:00:19]} Qc2+ {[%emt 0:00:08]} 52. Kf1 {[%emt 0:00:08]} Qc1+ {[%emt 0:00:06]} 53. Kf2 {[%emt 0:00:30]} Qd2+ {[%emt 0:00:56]} 54. Kf1 {[%emt 0:00:27]} Qe3 {[%emt 0:00:05]} 55. Qh5+ {[%emt 0:00:16]} Kg7 {[%emt 0:00:14]} 56. Qg4+ {[%emt 0:00:44]} Kh6 {[%emt 0:00:36]} 57. h5 {[%emt 0:00:58]} Bg5 {[%emt 0:00:08]} 58. g3 {[%emt 0:01:36]} Qxe5 {[%emt 0:00:30]} 59. Kg2 {[%emt 0:01:53]} Qxd5+ {[%emt 0:00:24]} 60. Kf1 {[%emt 0:00:09]} e6 {[%emt 0:00:59]} 61. Ke1 {[%emt 0:00:16]} a5 {[%emt 0:01:31]} 0-1

[Event "LJ Slovak Open 2022"]
[Site "Liptovsky Jan"]
[Date "2022.06.24"]
[Round "3.53"]
[White "Stefanides, Karol"]
[Black "Pechociakova, Petra"]
[Result "1/2-1/2"]
[ECO "D02"]
[WhiteElo "1438"]
[BlackElo "1160"]
[Annotator "NA RC"]
[PlyCount "69"]
[EventDate "2022.06.23"]
[EventType "swiss"]
[EventCountry "SVK"]
[SourceTitle "playchess.com"]
[Source "ChessBase"]
[SourceQuality "1"]
[TimeControl "3600+30"]

1. d4 {[%emt 0:00:13]} d5 {[%emt 0:00:06]} 2. Nf3 {[%emt 0:00:13]} Nc6 {[%emt 0:00:12]} 3. e3 {[%emt 0:00:16]} a6 {[%emt 0:00:11]} 4. c4 {[%emt 0:01:11]} dxc4 {[%emt 0:00:49]} 5. Bxc4 {[%emt 0:00:16]} Nf6 {[%emt 0:00:49]} 6. O-O {[%emt 0:01:15]} e6 {[%emt 0:01:06]} 7. a3 {[%emt 0:01:21]} Bd6 {[%emt 0:00:52]} 8. Nbd2 {[%emt 0:01:29]} b5 {[%emt 0:01:18]} 9. Bd3 {[%emt 0:01:35]} O-O {[%emt 0:03:23]} 10. Ne4 {[%emt 0:01:43]} e5 {[%emt 0:03:15]} 11. dxe5 {[%emt 0:05:29]} Nxe5 {[%emt 0:00:34]} 12. Nxe5 {[%emt 0:01:37]} Bxe5 {[%emt 0:00:23]} 13. Nxf6+ {[%emt 0:03:08]} Qxf6 {[%emt 0:01:25]} 14. Qc2 {[%emt 0:02:29]} g6 {[%emt 0:01:33]} 15. Rb1 {[%emt 0:01:43]} Qg5 {[%emt 0:01:16]} 16. f4 {[%emt 0:01:00]} Bxf4 {[%emt 0:00:52]} 17. exf4 {[%emt 0:00:49]} Qd8 {[%emt 0:00:41]} 18. b4 {[%emt 0:00:47]} Qd4+ {[%emt 0:00:27]} 19. Kh1 {[%emt 0:00:38]} c6 {[%emt 0:01:56]} 20. Bb2 {[%emt 0:00:53]} Qd5 {[%emt 0:01:03]} 21. Be4 {[%emt 0:01:11]} Qc4 {[%emt 0:01:50]} 22. Qxc4 {[%emt 0:02:16]} bxc4 {[%emt 0:00:40]} 23. Bxc6 {[%emt 0:01:20]} Ra7 {[%emt 0:01:20]} 24. Rbc1 {[%emt 0:01:04]} Be6 {[%emt 0:05:04]} 25. Kg1 {[%emt 0:00:44]} Rc7 {[%emt 0:02:10]} 26. Bf3 {[%emt 0:01:12]} Rd8 {[%emt 0:03:04]} 27. Rfd1 {[%emt 0:00:38]} Rdc8 {[%emt 0:00:52]} 28. Bc3 {[%emt 0:00:25]} h5 {[%emt 0:02:09]} 29. h3 {[%emt 0:01:12]} h4 {[%emt 0:01:04]} 30. Rd6 {[%emt 0:01:05]} Kh7 {[%emt 0:04:03]} 31. a4 {[%emt 0:01:34]} Kh6 {[%emt 0:01:37]} 32. Rcd1 {[%emt 0:01:03]} Bf5 {[%emt 0:01:08]} 33. R1d4 {[%emt 0:02:51]} Bc2 {[%emt 0:01:11]} 34. a5 {[%emt 0:00:33]} Re8 {[%emt 0:00:35]} 35. Kf2 {[%emt 0:01:15]} 1/2-1/2